bitfinex/quotes_ETHUSD_20251018
["timestamp","ask_amount","ask_price","bid_price","bid_amount"]
[1760774020059,2.43715632,3906.9,3905.2,0.0162]
[1760774020270,0.25155632,3906.9,3905.2,0.002]
[1760774020481,0.282,3906.8,3906.7,2.55969715]
[1760774020685,0.282,3906.8,3906.5,2.55983475]
[1760774020912,0.2196,3908.0,3907.1,2.55940414]
[1760774021067,1.7186,3907.9,3906.0,1.728]
[1760774021271,2.73895632,3907.8,3907.2,2.55931575]
[1760774021528,2.73895632,3907.8,3907.3,2.55928217]
[1760774021794,2.73895632,3907.8,3906.1,2.3758]
[1760774021795,0.4576,3907.7,3906.1,0.6478]
[1760774021964,0.03195632,3907.6,3906.1,0.6478]
[1760774022164,0.03195632,3907.6,3907.1,2.55943649]
[1760774022399,0.48955632,3907.6,3907.3,2.55931146]
[1760774022897,2.21755632,3907.6,3907.2,2.55932039]
[1760774023098,2.21755632,3907.6,3906.9,2.55952923]
[1760774023275,0.48955632,3907.6,3907.3,2.55931098]
[1760774023593,2.705,3907.5,3907.2,2.55931407]
[1760774023801,2.705,3907.5,3907.3,2.55930383]
[1760774024028,1.9476,3908.0,3906.1,0.0142]
[1760774024029,0.2196,3908.0,3906.1,0.6336]
[1760774024199,0.2196,3908.0,3905.2,0.002]
[1760774024200,0.829,3907.9,3907.3,0.0142]
[1760774024534,0.2196,3908.6,3907.7,2.55905008]
[1760774024535,1.632,3907.8,3907.7,2.55905008]
[1760774024668,0.04459571,3908.1,3908.0,2.55879766]
[1760774025001,2.74959571,3908.1,3908.0,2.55879766]
[1760774025299,2.74859571,3908.1,3907.9,2.55885897]
[1760774025707,4.47659571,3908.1,3908.0,2.55885363]
[1760774026201,4.47659571,3908.1,3907.9,2.55889977]
[1760774026402,4.47659571,3908.1,3908.0,2.55885363]
[1760774026711,4.47459571,3908.1,3908.0,2.55885363]
[1760774027074,4.47459571,3908.1,3906.8,0.0142]
[1760774027276,0.03195632,3908.0,3907.7,2.55902206]
[1760774027503,0.03195632,3908.0,3906.5,0.0142]
[1760774027673,0.03195632,3908.0,3907.9,2.55891911]
[1760774028075,0.04459571,3908.1,3908.0,2.55885363]
[1760774028311,1.05759571,3908.1,3907.8,2.5589577]
[1760774028475,0.2196,3907.9,3907.6,2.55910589]
[1760774028674,0.2196,3907.9,3907.8,2.55898459]
[1760774029199,0.2196,3907.9,3906.7,0.6336]
[1760774029370,0.2196,3907.9,3907.8,2.55898459]
[1760774030469,0.6772,3907.9,3907.4,0.1272]
[1760774030674,0.48955632,3907.8,3907.4,0.1272]
[1760774030869,0.1272,3907.7,3907.6,2.55910334]
[1760774031273,0.04559571,3908.1,3908.0,2.55885363]
[1760774031500,1.69159571,3908.1,3908.0,2.55885363]
[1760774031890,1.647,3908.1,3908.0,2.55885363]
[1760774032094,1.69159384,3908.1,3908.0,2.55885363]
[1760774032292,0.04559384,3908.1,3908.0,2.55885363]
[1760774032490,2.698,3908.1,3908.0,2.55885363]
[1760774032698,0.001,3908.1,3908.0,2.55885363]
[1760774034482,2.697,3908.1,3908.0,2.55885363]
[1760774035508,3.1546,3908.1,3905.6,2.56241763]
[1760774035812,1.97955632,3908.0,3906.1,2.5742983]
[1760774035981,0.4576,3907.9,3906.2,0.6336]
[1760774036181,0.04459969,3907.6,3906.2,0.6336]
[1760774036488,0.04459969,3907.6,3906.1,0.0142]
[1760774036812,0.50219969,3907.6,3907.2,2.55934975]
[1760774037009,0.48955632,3907.5,3907.2,2.55935208]
[1760774037214,0.4576,3907.4,3906.1,0.6478]
[1760774037410,0.04459969,3907.6,3907.4,2.55924542]
[1760774037716,4.8766,3907.5,3907.4,2.55924542]
[1760774037912,4.8766,3907.5,3906.1,0.6336]
[1760774038090,4.8766,3907.5,3906.3,0.6336]
[1760774038410,2.1856,3907.4,3906.0,0.002]
[1760774038709,2.1856,3907.4,3906.6,2.55976351]
[1760774038912,0.2196,3906.7,3906.1,2.5600983]
[1760774039079,2.69,3906.6,3906.5,2.55983617]
[1760774040901,2.689,3906.6,3906.5,2.55983617]
[1760774041292,3.1229,3906.6,3906.5,2.55983617]
[1760774041894,2.8162,3906.6,3906.5,2.55983617]
[1760774042094,0.1272,3906.6,3906.5,2.55983617]
[1760774042410,1.282,3906.9,3906.8,2.5596396]
[1760774042587,0.4339,3907.8,3907.7,2.55905008]
[1760774042789,2.2229,3907.8,3907.7,2.55905008]
[1760774043127,0.4339,3907.8,3907.7,2.55905008]
[1760774043292,4.8479,3907.8,3907.7,2.55905008]
[1760774043504,3.1199,3907.8,3906.2,0.0142]
[1760774043812,0.2196,3908.0,3906.3,0.65919967]
[1760774044006,2.685,3907.9,3907.8,2.55894047]
[1760774044315,2.685,3907.9,3906.5,0.6336]
[1760774044316,3.1189,3907.9,3907.5,2.55916535]
[1760774044514,3.1189,3907.9,3906.4,0.0142]
[1760774044515,0.46585632,3907.8,3907.1,2.55942161]
[1760774044714,0.4339,3907.7,3907.1,2.5594128]
[1760774045014,0.46585632,3907.6,3907.0,2.5594496]
[1760774045223,0.51045764,3907.6,3906.8,2.55958854]
[1760774045426,0.4339,3907.5,3906.4,2.55990169]
[1760774045624,0.03195632,3907.4,3907.3,2.55930081]
[1760774045792,0.03195632,3907.4,3907.2,2.55936652]
[1760774045990,0.03195632,3907.4,3907.3,2.55931205]
[1760774046299,0.46585632,3907.5,3907.4,2.55924655]
[1760774046821,4.8459,3907.5,3907.4,2.55924655]
[1760774048116,2.1619,3907.5,3907.4,2.55924655]
[1760774048340,0.04460132,3907.6,3907.5,2.55918106]
[1760774048486,0.4713,3908.8,3908.0,2.55885363]
[1760774048691,0.644,3908.1,3908.0,2.55885363]
[1760774048890,1.457,3908.1,3908.0,2.55885363]
[1760774049104,0.001,3908.1,3908.0,2.55885363]
[1760774049300,0.001,3908.1,3908.0,3.20665363]
[1760774049920,0.001,3908.1,3908.0,3.23224216]
[1760774050126,0.001,3908.1,3908.0,4.96024216]
[1760774050537,0.001,3908.1,3908.0,4.93465363]
[1760774052153,0.001,3908.1,3908.0,3.19245363]
[1760774052318,0.001,3908.1,3908.0,3.31965363]
[1760774053014,0.001,3908.1,3908.0,3.33385363]
[1760774053510,0.001,3908.1,3908.0,3.31965363]
[1760774054400,0.001,3908.1,3908.0,3.33385363]
[1760774055038,0.001,3908.1,3908.0,3.31965363]
[1760774057530,0.001,3908.1,3908.0,2.68605363]
[1760774057843,0.4723,3908.1,3908.0,2.55885363]
[1760774058420,0.4723,3908.1,3907.8,2.55892498]
[1760774058622,0.2307,3907.9,3907.1,2.55944306]
[1760774058843,0.2307,3907.9,3907.8,2.55898459]
[1760774059076,0.702,3907.9,3907.8,2.55898459]
[1760774059224,0.702,3907.9,3907.7,2.55903367]
[1760774059547,3.1423,3907.8,3907.7,2.55903367]
[1760774060118,0.2307,3907.9,3907.8,2.55898459]
[1760774060319,2.9017,3907.9,3907.8,2.55898459]
[1760774060553,2.9007,3907.9,3907.8,2.55898459]
[1760774060847,0.2307,3907.9,3907.8,2.55898459]
[1760774061018,2.9007,3907.9,3907.8,2.55898459]
[1760774062227,0.001,3908.1,3908.0,2.55885363]
[1760774062437,0.001,3908.1,3908.0,3.19245363]
[1760774062649,0.001,3908.1,3908.0,2.55885363]
[1760774064528,0.4723,3908.1,3908.0,2.55885363]
[1760774064925,0.001,3908.1,3908.0,2.55885363]
[1760774065252,0.001,3908.1,3908.0,3.19245363]
[1760774067056,0.001,3908.1,3908.0,2.55885363]
[1760774067369,0.001,3908.1,3908.0,3.20665363]
[1760774067660,0.001,3908.1,3908.0,3.33385363]
[1760774069041,0.001,3908.1,3908.0,3.31965363]
[1760774072158,1e-08,3908.5,3908.4,3.19219175]
[1760774072361,1e-08,3908.5,3908.4,5.0526734]
[1760774072559,1e-08,3908.5,3908.4,5.06159175]
[1760774072762,1e-08,3908.5,3908.4,7.74717766]
[1760774072967,1e-08,3908.5,3908.4,7.72159175]
[1760774075138,1e-08,3908.5,3908.4,7.70739175]
[1760774075663,1e-08,3908.5,3908.4,7.72159175]
[1760774078145,1e-08,3908.5,3908.4,10.41859175]
[1760774078345,1e-08,3908.5,3908.4,10.29139175]
[1760774078739,1e-08,3908.5,3908.4,25.35278575]
[1760774078951,1e-08,3908.5,3908.4,17.45472475]
[1760774079147,1e-08,3908.5,3908.4,16.03893575]
[1760774079641,1e-08,3908.5,3908.4,10.29139175]
[1760774080463,1e-08,3908.5,3908.4,7.59439175]
[1760774080678,1e-08,3908.5,3908.4,7.58019175]
[1760774081384,0.2317,3909.9,3908.8,2.3616]
[1760774081792,0.2317,3909.9,3909.8,2.55767558]
[1760774082756,0.2317,3909.9,3908.4,0.002]
[1760774082974,0.2317,3909.9,3909.6,2.55776844]
[1760774083180,0.2317,3909.9,3908.6,2.55846082]
[1760774083386,0.2317,3909.9,3909.8,2.55767558]
[1760774083796,0.3643,3909.9,3909.8,2.55767558]
[1760774084392,0.39625632,3909.9,3909.8,2.55767558]
[1760774085594,0.44082904,3909.9,3909.8,2.55767558]
[1760774086963,0.44082904,3909.9,3909.5,2.55784201]
[1760774087163,0.1326,3909.8,3909.5,2.55784201]
[1760774087462,0.16455632,3909.7,3909.4,2.55792965]
[1760774087670,0.1336,3909.6,3909.5,2.55787185]
[1760774088798,2.7816,3909.6,3909.5,2.55787185]
[1760774089177,0.1336,3909.6,3909.5,2.55787185]
[1760774089375,1.4436,3909.6,3909.5,2.55787185]
[1760774091713,0.1272,3909.8,3909.7,2.557741]
[1760774092004,2.7732,3909.8,3909.7,2.557741]
[1760774092313,2.7732,3909.8,3909.3,2.55798848]
[1760774092617,2.81055632,3909.7,3909.5,2.55786383]
[1760774092782,0.1336,3909.6,3909.5,2.55786383]
[1760774093373,0.1272,3909.5,3908.9,0.1272]
[1760774093600,0.16555632,3909.4,3909.3,2.55800271]
[1760774093808,0.1336,3909.4,3909.3,2.55800271]
[1760774096416,0.1336,3909.4,3909.2,2.55801383]
[1760774096718,0.03195632,3909.4,3909.3,2.55800271]
[1760774097218,0.16555632,3909.4,3909.3,2.55800271]
[1760774100693,2.67295632,3909.4,3909.3,2.55800271]
[1760774100893,2.80655632,3909.4,3909.3,2.55800271]
[1760774101425,2.80655632,3909.4,3909.3,2.56000271]
[1760774102014,2.80655632,3909.4,3909.3,0.002]
[1760774102824,11.29344506,3909.4,3909.3,0.002]
[1760774103024,11.62606623,3909.4,3909.3,0.002]
[1760774104525,11.62406623,3909.4,3909.3,0.002]
[1760774104925,14.1820035,3909.4,3909.3,0.002]
[1760774105830,17.51847019,3909.4,3909.3,0.002]
[1760774106129,14.22659619,3909.4,3909.3,0.002]
[1760774108128,26.60471519,3909.4,3909.3,0.002]
[1760774108298,4.91966814,3909.2,3908.9,0.002]
[1760774108499,4.28619902,3909.0,3908.9,0.002]
[1760774108700,14.67826525,3909.0,3908.9,0.002]
[1760774109028,15.21320228,3909.0,3908.9,0.002]
[1760774109336,15.25779966,3909.0,3908.9,0.002]
[1760774111050,12.62079966,3909.0,3908.9,0.002]
[1760774111251,16.40979966,3909.0,3908.9,0.002]
[1760774111948,16.36520228,3909.0,3908.9,0.002]
[1760774112253,28.48020368,3909.0,3908.9,0.002]
[1760774112551,31.75350905,3909.0,3908.9,0.002]
[1760774113115,45.69486705,3909.0,3908.9,0.002]
[1760774113345,45.69486705,3909.0,3908.5,0.002]
[1760774113346,10.014212,3908.6,3908.5,0.002]
[1760774113519,22.13788505,3908.6,3908.5,0.002]
[1760774113831,19.74605205,3908.6,3908.5,0.002]
[1760774114030,14.81802705,3908.6,3908.5,0.002]
[1760774114232,21.65066005,3908.6,3908.5,0.002]
[1760774114539,17.02766605,3908.6,3908.5,0.002]
[1760774114719,17.0722712,3908.6,3908.5,0.002]
[1760774115141,18.5462582,3908.6,3908.5,0.002]
[1760774116136,23.8780802,3908.6,3908.5,0.002]
[1760774116317,22.55177103,3908.6,3908.5,0.002]
[1760774117158,41.78408403,3908.6,3908.5,0.002]
[1760774117328,39.87662903,3908.6,3908.5,0.002]
[1760774117855,37.48938303,3908.6,3908.5,0.002]
[1760774118220,25.06880303,3908.6,3908.5,0.002]
[1760774118421,24.68942403,3908.6,3908.5,0.002]
[1760774118722,24.05582403,3908.6,3908.5,0.002]
[1760774119236,35.62359003,3908.6,3908.5,0.002]
[1760774120062,29.96512791,3908.6,3908.5,0.002]
[1760774120225,39.24227991,3908.6,3908.5,0.002]
[1760774121323,45.36667691,3908.6,3908.5,0.002]
[1760774122824,8.93698459,3907.8,3907.7,0.002]
[1760774123017,13.29598459,3907.8,3907.7,0.002]
[1760774123552,13.96039323,3907.8,3907.7,0.002]
[1760774124120,13.80509323,3907.8,3907.7,0.002]
[1760774125638,13.8811972,3907.8,3907.7,0.002]
[1760774125963,14.40538594,3907.8,3907.7,0.002]
[1760774126178,14.76996343,3907.8,3907.7,0.002]
[1760774126667,6.42260864,3907.8,3907.7,0.4665]
[1760774126885,9.05060864,3907.8,3907.7,0.4665]
[1760774127030,9.05060864,3907.8,3907.7,3.02555008]
[1760774127031,6.42260864,3907.8,3907.7,3.02555008]
[1760774127232,9.006,3907.8,3907.7,0.4665]
[1760774127432,10.734,3907.8,3907.7,0.4665]
[1760774127632,10.734,3907.8,3907.7,3.02555008]
[1760774127866,9.006,3907.8,3907.7,3.02555008]
[1760774128275,10.734,3907.8,3907.7,3.02555008]
[1760774128476,9.006,3907.8,3907.7,3.02555008]
[1760774128785,6.378,3907.8,3907.7,3.02555008]
[1760774128941,9.006,3907.8,3907.7,3.02555008]
[1760774129347,9.006,3907.8,3907.7,0.4665]
[1760774129559,9.006,3907.8,3907.7,3.02555008]
[1760774130030,2.628,3907.8,3907.7,3.02555008]
[1760774130236,4.356,3907.8,3907.7,0.4665]
[1760774131756,4.356,3907.8,3907.7,3.02555008]
[1760774133188,4.356,3907.8,3907.7,0.4665]
[1760774133494,4.356,3907.8,3907.7,0.002]
[1760774133679,4.356,3907.8,3907.7,0.452]
[1760774133878,4.356,3907.8,3907.7,0.002]
[1760774134203,4.38795632,3907.8,3907.7,0.002]
[1760774135065,4.76325632,3907.8,3907.7,0.002]
[1760774135462,4.38795632,3907.8,3907.7,0.002]
[1760774136572,4.356,3907.8,3907.7,0.002]
[1760774136795,1.728,3907.8,3907.7,0.002]
[1760774136995,4.353,3907.8,3907.7,0.002]
[1760774138314,7.31924091,3907.8,3907.7,0.002]
[1760774138604,4.7283,3907.8,3907.7,0.002]
[1760774138910,7.31924091,3907.8,3907.7,0.002]
[1760774139211,8.02075082,3907.8,3907.7,0.002]
[1760774139677,21.13675982,3907.8,3907.7,0.002]
[1760774139868,17.59820082,3907.8,3907.7,0.002]
[1760774140068,22.11368015,3907.8,3907.7,0.002]
[1760774140772,32.00265315,3907.8,3907.7,0.002]
[1760774140994,31.74511215,3907.8,3907.7,0.002]
[1760774141179,30.71195415,3907.8,3907.7,0.002]
[1760774141502,31.15806399,3907.8,3907.7,0.002]
[1760774141713,12.98233999,3907.8,3907.7,0.002]
[1760774141912,42.98233999,3907.8,3907.7,0.002]
[1760774142213,38.02476999,3907.8,3907.7,0.002]
[1760774142503,37.62327961,3907.8,3907.7,0.002]
[1760774142800,42.45476761,3907.8,3907.7,0.002]
[1760774143101,37.82687461,3907.8,3907.7,0.002]
[1760774143473,45.52243897,3907.8,3907.7,0.002]
[1760774143812,47.75796397,3907.8,3907.7,0.002]
[1760774144102,40.03767097,3907.8,3907.7,0.002]
[1760774144304,36.19520297,3907.8,3907.7,0.002]
[1760774144800,48.08786497,3907.8,3907.7,0.002]
[1760774144992,32.11696997,3907.8,3907.7,0.002]
[1760774145519,28.21710297,3907.8,3907.7,0.002]
[1760774145756,31.99610297,3907.8,3907.7,0.002]
[1760774146054,32.04819497,3907.8,3907.7,0.002]
[1760774146625,32.44969387,3907.8,3907.7,0.002]
[1760774146828,34.70112887,3907.8,3907.7,0.002]
[1760774147131,5.63110295,3907.8,3907.7,0.452]
[1760774147450,7.35910295,3907.8,3907.7,0.002]
[1760774147610,17.99991085,3907.8,3907.7,0.002]
[1760774147943,23.44227085,3907.8,3907.7,0.002]
[1760774148825,37.23155785,3907.8,3907.7,0.002]
[1760774149014,37.23155785,3907.8,3907.6,0.002]
[1760774149015,4.92065008,3907.7,3907.6,1e-08]
[1760774149344,25.4050363,3907.7,3907.6,1e-08]
[1760774149549,8.61487498,3907.7,3907.6,1e-08]
[1760774149914,12.39387498,3907.7,3907.6,1e-08]
[1760774150934,26.91296898,3907.7,3907.6,1e-08]
[1760774151251,23.13396898,3907.7,3907.6,1e-08]
[1760774151551,26.91296898,3907.7,3907.6,1e-08]
[1760774151864,35.56967098,3907.7,3907.6,1e-08]
[1760774152329,35.67235791,3907.7,3907.6,1e-08]
[1760774152942,37.31562091,3907.7,3907.6,1e-08]
[1760774153129,36.03312091,3907.7,3907.6,1e-08]
[1760774153918,39.91026991,3907.7,3907.6,1e-08]
[1760774154319,39.95489001,3907.7,3907.6,1e-08]
[1760774154514,36.17589001,3907.7,3907.6,1e-08]
[1760774154751,23.34453901,3907.7,3907.6,1e-08]
[1760774154928,25.89716701,3907.7,3907.6,1e-08]
[1760774155325,25.31673701,3907.7,3907.6,1e-08]
[1760774155857,9.95589001,3907.7,3907.6,1e-08]
[1760774156021,26.18229301,3907.7,3907.6,1e-08]
[1760774156765,24.58087601,3907.7,3907.6,1e-08]
[1760774157058,37.78897301,3907.7,3907.6,1e-08]
[1760774157562,37.78897301,3907.7,3906.1,0.1356]
[1760774157563,4.28803276,3906.2,3906.1,0.1356]
[1760774157748,6.94598908,3906.2,3906.1,0.1356]
[1760774157944,6.91403276,3906.2,3906.1,0.1356]
[1760774158138,6.95865744,3906.2,3906.1,0.1356]
[1760774158337,6.91403276,3906.2,3906.1,0.1356]
[1760774158531,6.91403276,3906.2,3906.1,0.5856]
[1760774159485,7.27861025,3906.2,3906.1,0.1356]
[1760774160061,7.27861025,3906.2,3906.1,0.5701]
[1760774160450,9.56378425,3906.2,3906.1,0.002]
[1760774160623,12.77373325,3906.2,3906.1,0.002]
[1760774160829,8.80680325,3906.2,3906.1,0.002]
[1760774161028,11.43280325,3906.2,3906.1,0.002]
[1760774161364,11.43280325,3906.2,3906.1,0.1356]
[1760774161365,9.93663625,3906.2,3906.1,0.1356]
[1760774161552,7.5319,3905.7,3905.4,0.002]
[1760774161725,10.1579,3905.7,3905.4,0.002]
[1760774162133,12.71826049,3905.7,3905.4,0.002]
[1760774162328,10.1579,3905.7,3905.4,0.002]
[1760774162667,12.71826049,3905.7,3905.4,0.002]
[1760774162868,7.5319,3905.7,3905.4,0.002]
[1760774163025,10.1579,3905.7,3905.4,0.002]
[1760774163429,13.94253276,3905.7,3905.4,0.1424]
[1760774164230,10.1579,3905.7,3905.4,0.002]
[1760774164435,14.30711025,3905.7,3905.4,0.002]
[1760774164746,16.86747074,3905.7,3905.4,0.002]
[1760774164943,14.30711025,3905.7,3905.4,0.002]
[1760774165332,16.86747074,3905.7,3905.4,0.002]
[1760774165752,17.23552615,3905.7,3905.4,0.002]
[1760774166153,17.63716911,3905.7,3905.4,0.002]
[1760774166531,15.07680862,3905.7,3905.4,0.002]
[1760774166737,14.34417572,3905.7,3905.4,0.002]
[1760774166992,13.94253276,3905.7,3905.6,0.1424]
[1760774167963,11.31653276,3905.7,3905.6,0.1424]
[1760774168168,13.94253276,3905.7,3905.6,0.1424]
[1760774169591,16.50289325,3905.7,3905.6,0.002]
[1760774169793,17.23552615,3905.7,3905.6,0.002]
[1760774170368,7.5299,3905.5,3905.4,0.002]
[1760774170557,10.09039161,3905.5,3905.4,0.002]
[1760774170799,7.5299,3905.5,3905.4,0.002]
[1760774171773,10.1559,3905.5,3905.4,0.002]
[1760774172302,12.71639161,3905.5,3905.4,0.002]
[1760774172504,13.44902451,3905.5,3905.4,0.002]
[1760774173493,13.91982451,3905.5,3905.4,0.002]
[1760774173709,4.32545076,3905.0,3904.4,0.1404]
[1760774174010,11.13261733,3905.0,3904.4,0.1404]
[1760774174210,16.90256101,3905.0,3904.1,0.1404]
[1760774175071,17.37336101,3905.0,3904.1,0.1404]
[1760774175275,17.37336101,3905.0,3903.8,0.1404]
[1760774176219,17.37336101,3905.0,3903.1,2.56204935]
[1760774176220,2.56114739,3904.5,3903.1,2.56204935]
[1760774176518,1.728,3904.1,3903.7,0.1404]
[1760774176719,4.38595632,3904.1,3903.6,0.1404]
[1760774177029,10.18585632,3904.1,3903.6,0.1404]
[1760774177189,12.71530979,3904.1,3903.6,0.1404]
[1760774177386,1.728,3904.0,3903.8,0.1404]
[1760774178220,1.728,3904.0,3903.9,0.6404]
[1760774178418,1.728,3904.0,3903.9,0.5]
[1760774179393,1.75995632,3904.0,3903.9,0.5]
[1760774179794,1.728,3904.0,3903.9,0.5]
[1760774180023,1.728,3904.0,3903.9,0.6404]
[1760774180222,35.41443906,3904.0,3903.9,0.455358]
[1760774180423,37.23615965,3904.0,3903.9,0.455358]
[1760774180614,37.70695965,3904.0,3903.9,0.455358]
[1760774180927,38.34055965,3904.0,3903.9,0.455358]
[1760774181101,38.70861506,3904.0,3903.9,0.455358]
[1760774181291,42.53814106,3904.0,3903.9,0.455358]
[1760774181914,46.32277382,3904.0,3903.9,0.455358]
[1760774182607,1.728,3902.6,3902.4,0.1404]
[1760774182805,8.17158908,3902.5,3902.4,0.1404]
[1760774183008,1.728,3902.4,3902.1,0.1404]
[1760774183208,5.51263276,3902.2,3901.7,0.1404]
[1760774183426,1.728,3902.0,3901.7,0.1404]
[1760774183632,1.728,3901.8,3901.7,0.1404]
[1760774183996,4.355,3901.8,3901.7,0.2808]
[1760774184240,10.70255243,3901.8,3901.7,0.1404]
[1760774184531,8.13963276,3901.8,3901.7,0.1404]
[1760774184898,10.70255243,3901.8,3901.7,0.1404]
[1760774185098,8.13963276,3901.8,3901.7,0.1404]
[1760774185427,8.13963276,3901.8,3899.2,0.77110019]
[1760774185428,1.728,3901.7,3901.3,0.1404]
[1760774185839,1.728,3901.5,3901.4,0.1404]
[1760774186047,2.627,3901.5,3901.4,0.1404]
[1760774186233,1.198642,3902.4,3901.4,0.1404]
[1760774186234,0.03195632,3902.2,3901.4,0.1404]
[1760774186415,1.728,3901.4,3901.3,0.1404]
[1760774186741,4.355,3901.4,3901.3,0.2808]
[1760774187753,4.355,3901.4,3899.8,0.1404]
[1760774187914,1.728,3901.1,3899.9,0.1404]
[1760774188241,2.65895632,3901.0,3900.0,0.1404]
[1760774189141,2.65895632,3901.0,3900.0,2.70448553]
[1760774190250,0.128,3900.4,3900.0,0.1404]
[1760774190547,0.128,3900.4,3900.1,0.1404]
[1760774190752,0.03195632,3900.4,3899.9,0.1404]
[1760774191075,0.128,3900.3,3900.0,2.70445164]
[1760774191229,0.128,3900.3,3900.1,0.1404]
[1760774191554,0.128,3900.3,3900.2,2.56397107]
[1760774191854,0.128,3900.3,3900.2,2.70437107]
[1760774192422,0.2268,3901.9,3900.2,0.1404]
[1760774192621,0.2268,3901.9,3900.8,2.56351961]
[1760774192622,0.128,3901.0,3900.8,2.56351961]
[1760774192853,0.128,3901.0,3900.9,2.56351098]
[1760774193056,2.756,3901.4,3901.3,2.56324814]
[1760774193220,0.36457749,3902.6,3901.3,2.56324814]
[1760774193421,0.128,3901.9,3901.7,2.56297937]
[1760774193623,4.484,3901.9,3901.8,0.1404]
[1760774193824,2.09257749,3902.6,3901.8,0.1404]
[1760774193825,2.628,3902.2,3901.8,0.1404]
[1760774194030,2.628,3902.2,3900.7,2.56362402]
[1760774194031,2.628,3902.2,3902.1,2.56272263]
[1760774194356,2.628,3902.2,3902.1,2.70312263]
[1760774194558,2.628,3902.5,3902.3,2.5625816]
[1760774194764,2.628,3902.5,3901.1,0.02563379]
[1760774194765,2.628,3902.5,3902.4,2.56252562]
[1760774194931,2.628,3902.5,3899.2,2.56459869]
[1760774195122,2.628,3902.5,3900.9,0.6336]
[1760774195449,2.628,3902.8,3901.4,0.002]
[1760774195637,0.03195632,3902.7,3901.5,0.1404]
[1760774195858,1.75995632,3902.7,3901.5,0.1404]
[1760774196060,1.75995632,3902.7,3901.7,2.56297803]
[1760774196238,1.75995632,3902.7,3901.8,2.5629117]
[1760774196442,1.75995632,3902.7,3901.9,2.56285024]
[1760774197143,1.75995632,3902.7,3901.8,0.1404]
[1760774197343,2.56255377,3902.4,3901.4,0.002]
[1760774197676,2.99257749,3902.3,3901.4,0.002]
[1760774197885,1.728,3902.2,3901.6,2.56304912]
[1760774198038,0.03195632,3902.1,3901.5,2.56311674]
[1760774198242,0.03195632,3902.1,3901.4,0.002]
[1760774198981,4.29065825,3902.2,3901.4,0.002]
[1760774199286,0.4376,3902.0,3901.4,0.002]
[1760774200914,1.728,3902.2,3901.4,0.002]
[1760774200915,0.03195632,3902.1,3901.4,0.002]
[1760774201185,1.75995632,3902.2,3901.7,2.56294413]
[1760774201385,1.75995632,3902.2,3901.4,0.002]
[1760774201386,2.19755632,3902.2,3901.4,2.56516791]
[1760774201589,1.75995632,3902.2,3901.5,2.56310223]
[1760774201891,1.75995632,3902.2,3901.6,2.56304072]
[1760774202499,1.728,3902.2,3901.5,2.56311092]
[1760774202706,1.728,3902.2,3901.7,2.562935]
[1760774203198,0.03195632,3902.1,3901.6,2.56304039]
[1760774203409,0.03195632,3902.1,3901.4,0.002]
[1760774203410,0.46955632,3902.1,3901.4,2.56512939]
[1760774203571,0.46955632,3902.1,3901.4,0.002]
[1760774203971,0.46955632,3902.1,3901.4,2.56516647]
[1760774204171,0.128,3901.7,3901.4,2.56516647]
[1760774204368,0.128,3901.7,3901.4,0.002]
[1760774205366,0.4376,3901.6,3901.4,0.002]
[1760774205572,0.128,3901.5,3901.4,0.002]
[1760774205894,0.128,3901.5,3901.4,2.56518244]
[1760774206096,0.128,3901.5,3901.4,0.002]
[1760774206879,0.128,3901.5,3901.4,2.56518244]
[1760774207271,0.128,3901.5,3901.4,0.002]
[1760774207774,0.128,3901.5,3901.4,2.56518244]
[1760774208285,1.728,3901.7,3901.4,0.002]
[1760774208286,1.75995632,3901.7,3901.4,0.002]
[1760774208491,1.728,3901.7,3901.4,0.002]
[1760774208801,7.5279,3901.7,3901.4,0.002]
[1760774209387,7.9655,3901.7,3901.4,0.002]
[1760774209586,8.0935,3901.7,3901.4,0.002]
[1760774209788,0.46955632,3901.6,3901.4,0.002]
[1760774209983,0.128,3901.5,3901.4,0.002]
[1760774210579,0.5656,3901.5,3901.4,0.002]
[1760774210814,0.128,3901.5,3901.4,0.002]
[1760774211295,0.5656,3901.5,3901.4,0.002]
[1760774211496,0.128,3901.5,3901.4,0.002]
[1760774212287,0.5656,3901.5,3901.4,0.002]
[1760774213281,0.4376,3901.5,3900.2,0.1404]
[1760774213475,1.728,3901.3,3900.0,0.774]
[1760774213693,0.03195632,3901.2,3900.0,0.774]
[1760774213908,2.19755632,3901.3,3900.7,2.56359391]
[1760774214100,2.19755632,3901.3,3900.8,2.56357106]
[1760774214297,0.4376,3901.2,3900.6,2.56564265]
[1760774214609,0.4376,3901.2,3901.0,0.002]
[1760774214808,0.46955632,3901.1,3901.0,0.002]
[1760774215812,2.19755632,3901.1,3901.0,0.002]
[1760774215975,2.1656,3901.1,3901.0,0.002]
[1760774217092,4.72897955,3901.1,3901.0,0.002]
[1760774217293,5.13108303,3901.1,3901.0,0.002]
[1760774217687,4.72897955,3901.1,3901.0,0.002]
[1760774217893,16.22473609,3901.1,3901.0,0.002]
[1760774218107,28.14318177,3901.1,3901.0,0.002]
[1760774218320,30.77018177,3901.1,3901.0,0.002]
[1760774218519,30.40212636,3901.1,3901.0,0.002]
[1760774218990,35.30526236,3901.1,3901.0,0.002]
[1760774219321,32.28799036,3901.1,3901.0,0.002]
[1760774219728,21.60020036,3901.1,3901.0,0.002]
[1760774220095,24.15559136,3901.1,3901.0,0.002]
[1760774221182,47.04840036,3901.1,3901.0,0.002]
[1760774221382,44.08657436,3901.1,3901.0,0.002]
[1760774221624,39.17863736,3901.1,3901.0,0.002]
[1760774221796,39.22332701,3901.1,3901.0,0.002]
[1760774221998,39.17863736,3901.1,3901.0,0.002]
[1760774222199,40.76938236,3901.1,3901.0,0.002]
[1760774222579,39.77056936,3901.1,3901.0,0.002]